{"text_format":"3","workbook":"xlsx","n_sheets":14,"sheets":["tips","overzicht","jan","feb","mrt","apr","mei","jun","jul","aug","sep","okt","nov","dec"],"not_rendered":{"charts":1,"defined_names":27},"read":"whole","date_system":"1900"}

{"sheet":"tips","index":0,"n_rows":18,"n_cols":1,"rows_kept":18}
["SJABLOONTIPS"]
["Is er een eenvoudige manier om te schakelen tussen het overzichtsblad Onkostentrends en maandelijkse onkostendetails?"]
["Als u snel wilt navigeren naar de onkosten van een specifieke maand, klikt u op de bijbehorende navigatiekoppeling boven de grafiek, zoals de navigatiekoppeling Jan in B2. Klik vervolgens, als u wilt teruggaan naar het werkblad Onkostentrends, op de navigatiekoppeling Overzicht in D1. "]
["Als u wilt terugkeren naar dit werkblad Tips, selecteert u N2 in het werkblad Overzicht. Selecteer E1 in alle maandwerkbladen ."]
["Hoe voeg ik een nieuw onkostentype toe aan het onkostenoverzicht of nieuwe maandelijkse onkosten?"]
["Het onkostenoverzicht onder de grafiek en de onkostendetails voor elke maand zijn Excel-tabellen. Als u nieuwe rijen wilt toevoegen aan een Excel-tabel, doet u het volgende:"]
[{"$f":"ROW(A1)&\". Begin onder een tabel te typen als de tabel geen totaalrij heeft; deze wordt dan automatisch uitgebreid wanneer u op Enter of Tab drukt.\"","v":"1. Begin onder een tabel te typen als de tabel geen totaalrij heeft; deze wordt dan automatisch uitgebreid wanneer u op Enter of Tab drukt."}]
[{"$f":"ROW(A2)&\". Plaats uw celaanwijzer in de laatste cel boven de totaalrij, zoals het totaal voor de laatste uitgaven, en druk vervolgens op de Tab-toets.\"","v":"2. Plaats uw celaanwijzer in de laatste cel boven de totaalrij, zoals het totaal voor de laatste uitgaven, en druk vervolgens op de Tab-toets."}]
[{"$f":"ROW(A3)&\". Klik met de rechtermuisknop in de tabel en ga in het snelmenu naar Invoegen. Klik daarna op Tabelrijen boven of Tabelrijen onder.\"","v":"3. Klik met de rechtermuisknop in de tabel en ga in het snelmenu naar Invoegen. Klik daarna op Tabelrijen boven of Tabelrijen onder."}]
[{"$f":"ROW(A4)&\". Plaats uw muis in de rechterbenedenhoek van de tabel op de formaatgreep van de tabel en sleep hem omlaag om het aantal beschikbare tabelrijen te vergroten.\"","v":"4. Plaats uw muis in de rechterbenedenhoek van de tabel op de formaatgreep van de tabel en sleep hem omlaag om het aantal beschikbare tabelrijen te vergroten."}]
["Voer onkosten in het werkblad Overzicht in de tabel Onkostenoverzicht in de kolom Onkosten in."]
["Voeg het onkostenbedrag toe voor elk onkostentype in het maandwerkblad waarin de onkosten van toepassing zijn."]
["Bijvoorbeeld: 'Onkosten 1' vindt plaats in de maanden januari tot en met juni en in december. "]
[{"$f":"ROW(A1)&\". Onkosten 1 wordt in het overzichtswerkblad onder Onkosten in de tabel ExpenseSummary ingevoerd (als de titel voor het type uitgaven).\"","v":"1. Onkosten 1 wordt in het overzichtswerkblad onder Onkosten in de tabel ExpenseSummary ingevoerd (als de titel voor het type uitgaven)."}]
[{"$f":"ROW(A2)&\". Voer voor elke maand waarin de onkosten voorkomen het bedrag van de onkosten in op het corresponderende werkblad voor de maand.\"","v":"2. Voer voor elke maand waarin de onkosten voorkomen het bedrag van de onkosten in op het corresponderende werkblad voor de maand."}]
[{"$f":"ROW(A3)&\". Het onkostentype op het werkblad ExpenseSummary vormt een categorielijst voor de kolom Categorie in het werkblad voor elke maand.\"","v":"3. Het onkostentype op het werkblad ExpenseSummary vormt een categorielijst voor de kolom Categorie in het werkblad voor elke maand."}]
[{"$f":"ROW(A4)&\". Gebruik de categorielijst in de kolom Categorie om het bijbehorende onkostentype voor het ingevoerde onkostenbedrag te selecteren\"","v":"4. Gebruik de categorielijst in de kolom Categorie om het bijbehorende onkostentype voor het ingevoerde onkostenbedrag te selecteren"}]
[{"$f":"ROW(A5)&\". U kunt nieuwe onkosten voor een willekeurige maand toevoegen door een nieuwe rij aan de tabel ExpenseSummary in het overzichtswerkblad toe te voegen en vervolgens de corresponderende \"&\"onkostendetails in te voeren op het werkblad voor de maand waarin ze voorkomen.\"","v":"5. U kunt nieuwe onkosten voor een willekeurige maand toevoegen door een nieuwe rij aan de tabel ExpenseSummary in het overzichtswerkblad toe te voegen en vervolgens de corresponderende onkostendetails in te voeren op het werkblad voor de maand waarin ze voorkomen."}]

{"sheet":"overzicht","index":1,"n_rows":10,"n_cols":15,"rows_kept":10}
["ONKOSTENTRENDS"]
[null,"jan","feb","mrt","apr","mei","jun","jul","aug","sep","okt","nov","dec","Tips"]
[]
["Onkosten","jan","feb","mrt","apr","mei","jun","jul","aug","sep","okt","nov","dec","Totaal","Trend"]
["Onkosten 1",{"$f":"SUMIFS(OnkJan[Bedrag],OnkJan[Categorie],Onkostenoverzicht[Onkosten])","v":{"v":33,"d":"33.00"}},{"$f":"SUMIFS(OnkFeb[Bedrag],OnkFeb[Categorie],Onkostenoverzicht[Onkosten])","v":{"v":375,"d":"375.00"}},{"$f":"SUMIFS(OnkMrt[Bedrag],OnkMrt[Categorie],Onkostenoverzicht[Onkosten])","v":{"v":33,"d":"33.00"}},{"$f":"SUMIFS(OnkApr[Bedrag],OnkApr[Categorie],Onkostenoverzicht[Onkosten])","v":{"v":45,"d":"45.00"}},{"$f":"SUMIFS(OnkMei[Bedrag],OnkMei[Categorie],Onkostenoverzicht[Onkosten])","v":{"v":375,"d":"375.00"}},{"$f":"SUMIFS(OnkJun[Bedrag],OnkJun[Categorie],Onkostenoverzicht[Onkosten])","v":{"v":201,"d":"201.00"}},{"$f":"SUMIFS(OnkJul[Bedrag],OnkJul[Categorie],Onkostenoverzicht[Onkosten])","v":{"v":0,"d":"0.00"}},{"$f":"SUMIFS(OnkAug[Bedrag],OnkAug[Categorie],Onkostenoverzicht[Onkosten])","v":{"v":0,"d":"0.00"}},{"$f":"SUMIFS(OnkSep[Bedrag],OnkSep[Categorie],Onkostenoverzicht[Onkosten])","v":{"v":0,"d":"0.00"}},{"$f":"SUMIFS(OnkOkt[Bedrag],OnkOkt[Categorie],Onkostenoverzicht[Onkosten])","v":{"v":0,"d":"0.00"}},{"$f":"SUMIFS(OnkNov[Bedrag],OnkNov[Categorie],Onkostenoverzicht[Onkosten])","v":{"v":0,"d":"0.00"}},{"$f":"SUMIFS(OnkDec[Bedrag],OnkDec[Categorie],Onkostenoverzicht[Onkosten])","v":{"v":201,"d":"201.00"}},{"$f":"SUM(Onkostenoverzicht[[#This Row],[jan]:[dec]])","v":{"v":1263,"d":"1,263.00"}}]
["Onkosten 2",{"$f":"SUMIFS(OnkJan[Bedrag],OnkJan[Categorie],Onkostenoverzicht[Onkosten])","v":{"v":238,"d":"238.00"}},{"$f":"SUMIFS(OnkFeb[Bedrag],OnkFeb[Categorie],Onkostenoverzicht[Onkosten])","v":{"v":238,"d":"238.00"}},{"$f":"SUMIFS(OnkMrt[Bedrag],OnkMrt[Categorie],Onkostenoverzicht[Onkosten])","v":{"v":238,"d":"238.00"}},{"$f":"SUMIFS(OnkApr[Bedrag],OnkApr[Categorie],Onkostenoverzicht[Onkosten])","v":{"v":123,"d":"123.00"}},{"$f":"SUMIFS(OnkMei[Bedrag],OnkMei[Categorie],Onkostenoverzicht[Onkosten])","v":{"v":111,"d":"111.00"}},{"$f":"SUMIFS(OnkJun[Bedrag],OnkJun[Categorie],Onkostenoverzicht[Onkosten])","v":{"v":98,"d":"98.00"}},{"$f":"SUMIFS(OnkJul[Bedrag],OnkJul[Categorie],Onkostenoverzicht[Onkosten])","v":{"v":0,"d":"0.00"}},{"$f":"SUMIFS(OnkAug[Bedrag],OnkAug[Categorie],Onkostenoverzicht[Onkosten])","v":{"v":0,"d":"0.00"}},{"$f":"SUMIFS(OnkSep[Bedrag],OnkSep[Categorie],Onkostenoverzicht[Onkosten])","v":{"v":0,"d":"0.00"}},{"$f":"SUMIFS(OnkOkt[Bedrag],OnkOkt[Categorie],Onkostenoverzicht[Onkosten])","v":{"v":0,"d":"0.00"}},{"$f":"SUMIFS(OnkNov[Bedrag],OnkNov[Categorie],Onkostenoverzicht[Onkosten])","v":{"v":0,"d":"0.00"}},{"$f":"SUMIFS(OnkDec[Bedrag],OnkDec[Categorie],Onkostenoverzicht[Onkosten])","v":{"v":440,"d":"440.00"}},{"$f":"SUM(Onkostenoverzicht[[#This Row],[jan]:[dec]])","v":{"v":1486,"d":"1,486.00"}}]
["Onkosten 3",{"$f":"SUMIFS(OnkJan[Bedrag],OnkJan[Categorie],Onkostenoverzicht[Onkosten])","v":{"v":110,"d":"110.00"}},{"$f":"SUMIFS(OnkFeb[Bedrag],OnkFeb[Categorie],Onkostenoverzicht[Onkosten])","v":{"v":110,"d":"110.00"}},{"$f":"SUMIFS(OnkMrt[Bedrag],OnkMrt[Categorie],Onkostenoverzicht[Onkosten])","v":{"v":110,"d":"110.00"}},{"$f":"SUMIFS(OnkApr[Bedrag],OnkApr[Categorie],Onkostenoverzicht[Onkosten])","v":{"v":125,"d":"125.00"}},{"$f":"SUMIFS(OnkMei[Bedrag],OnkMei[Categorie],Onkostenoverzicht[Onkosten])","v":{"v":333,"d":"333.00"}},{"$f":"SUMIFS(OnkJun[Bedrag],OnkJun[Categorie],Onkostenoverzicht[Onkosten])","v":{"v":122,"d":"122.00"}},{"$f":"SUMIFS(OnkJul[Bedrag],OnkJul[Categorie],Onkostenoverzicht[Onkosten])","v":{"v":0,"d":"0.00"}},{"$f":"SUMIFS(OnkAug[Bedrag],OnkAug[Categorie],Onkostenoverzicht[Onkosten])","v":{"v":0,"d":"0.00"}},{"$f":"SUMIFS(OnkSep[Bedrag],OnkSep[Categorie],Onkostenoverzicht[Onkosten])","v":{"v":0,"d":"0.00"}},{"$f":"SUMIFS(OnkOkt[Bedrag],OnkOkt[Categorie],Onkostenoverzicht[Onkosten])","v":{"v":0,"d":"0.00"}},{"$f":"SUMIFS(OnkNov[Bedrag],OnkNov[Categorie],Onkostenoverzicht[Onkosten])","v":{"v":0,"d":"0.00"}},{"$f":"SUMIFS(OnkDec[Bedrag],OnkDec[Categorie],Onkostenoverzicht[Onkosten])","v":{"v":122,"d":"122.00"}},{"$f":"SUM(Onkostenoverzicht[[#This Row],[jan]:[dec]])","v":{"v":1032,"d":"1,032.00"}}]
["Onkosten 4",{"$f":"SUMIFS(OnkJan[Bedrag],OnkJan[Categorie],Onkostenoverzicht[Onkosten])","v":{"v":426,"d":"426.00"}},{"$f":"SUMIFS(OnkFeb[Bedrag],OnkFeb[Categorie],Onkostenoverzicht[Onkosten])","v":{"v":84,"d":"84.00"}},{"$f":"SUMIFS(OnkMrt[Bedrag],OnkMrt[Categorie],Onkostenoverzicht[Onkosten])","v":{"v":84,"d":"84.00"}},{"$f":"SUMIFS(OnkApr[Bedrag],OnkApr[Categorie],Onkostenoverzicht[Onkosten])","v":{"v":426,"d":"426.00"}},{"$f":"SUMIFS(OnkMei[Bedrag],OnkMei[Categorie],Onkostenoverzicht[Onkosten])","v":{"v":125,"d":"125.00"}},{"$f":"SUMIFS(OnkJun[Bedrag],OnkJun[Categorie],Onkostenoverzicht[Onkosten])","v":{"v":187,"d":"187.00"}},{"$f":"SUMIFS(OnkJul[Bedrag],OnkJul[Categorie],Onkostenoverzicht[Onkosten])","v":{"v":0,"d":"0.00"}},{"$f":"SUMIFS(OnkAug[Bedrag],OnkAug[Categorie],Onkostenoverzicht[Onkosten])","v":{"v":0,"d":"0.00"}},{"$f":"SUMIFS(OnkSep[Bedrag],OnkSep[Categorie],Onkostenoverzicht[Onkosten])","v":{"v":0,"d":"0.00"}},{"$f":"SUMIFS(OnkOkt[Bedrag],OnkOkt[Categorie],Onkostenoverzicht[Onkosten])","v":{"v":0,"d":"0.00"}},{"$f":"SUMIFS(OnkNov[Bedrag],OnkNov[Categorie],Onkostenoverzicht[Onkosten])","v":{"v":0,"d":"0.00"}},{"$f":"SUMIFS(OnkDec[Bedrag],OnkDec[Categorie],Onkostenoverzicht[Onkosten])","v":{"v":187,"d":"187.00"}},{"$f":"SUM(Onkostenoverzicht[[#This Row],[jan]:[dec]])","v":{"v":1519,"d":"1,519.00"}}]
["Onkosten 5",{"$f":"SUMIFS(OnkJan[Bedrag],OnkJan[Categorie],Onkostenoverzicht[Onkosten])","v":{"v":54,"d":"54.00"}},{"$f":"SUMIFS(OnkFeb[Bedrag],OnkFeb[Categorie],Onkostenoverzicht[Onkosten])","v":{"v":54,"d":"54.00"}},{"$f":"SUMIFS(OnkMrt[Bedrag],OnkMrt[Categorie],Onkostenoverzicht[Onkosten])","v":{"v":109,"d":"109.00"}},{"$f":"SUMIFS(OnkApr[Bedrag],OnkApr[Categorie],Onkostenoverzicht[Onkosten])","v":{"v":98,"d":"98.00"}},{"$f":"SUMIFS(OnkMei[Bedrag],OnkMei[Categorie],Onkostenoverzicht[Onkosten])","v":{"v":33,"d":"33.00"}},{"$f":"SUMIFS(OnkJun[Bedrag],OnkJun[Categorie],Onkostenoverzicht[Onkosten])","v":{"v":441,"d":"441.00"}},{"$f":"SUMIFS(OnkJul[Bedrag],OnkJul[Categorie],Onkostenoverzicht[Onkosten])","v":{"v":0,"d":"0.00"}},{"$f":"SUMIFS(OnkAug[Bedrag],OnkAug[Categorie],Onkostenoverzicht[Onkosten])","v":{"v":0,"d":"0.00"}},{"$f":"SUMIFS(OnkSep[Bedrag],OnkSep[Categorie],Onkostenoverzicht[Onkosten])","v":{"v":0,"d":"0.00"}},{"$f":"SUMIFS(OnkOkt[Bedrag],OnkOkt[Categorie],Onkostenoverzicht[Onkosten])","v":{"v":0,"d":"0.00"}},{"$f":"SUMIFS(OnkNov[Bedrag],OnkNov[Categorie],Onkostenoverzicht[Onkosten])","v":{"v":0,"d":"0.00"}},{"$f":"SUMIFS(OnkDec[Bedrag],OnkDec[Categorie],Onkostenoverzicht[Onkosten])","v":{"v":99,"d":"99.00"}},{"$f":"SUM(Onkostenoverzicht[[#This Row],[jan]:[dec]])","v":{"v":888,"d":"888.00"}}]
["Totaal",{"$f":"SUBTOTAL(109,Onkostenoverzicht[jan])","v":{"v":861,"d":"861.00"}},{"$f":"SUBTOTAL(109,Onkostenoverzicht[feb])","v":{"v":861,"d":"861.00"}},{"$f":"SUBTOTAL(109,Onkostenoverzicht[mrt])","v":{"v":574,"d":"574.00"}},{"$f":"SUBTOTAL(109,Onkostenoverzicht[apr])","v":{"v":817,"d":"817.00"}},{"$f":"SUBTOTAL(109,Onkostenoverzicht[mei])","v":{"v":977,"d":"977.00"}},{"$f":"SUBTOTAL(109,Onkostenoverzicht[jun])","v":{"v":1049,"d":"1,049.00"}},{"$f":"SUBTOTAL(109,Onkostenoverzicht[jul])","v":{"v":0,"d":"0.00"}},{"$f":"SUBTOTAL(109,Onkostenoverzicht[aug])","v":{"v":0,"d":"0.00"}},{"$f":"SUBTOTAL(109,Onkostenoverzicht[sep])","v":{"v":0,"d":"0.00"}},{"$f":"SUBTOTAL(109,Onkostenoverzicht[okt])","v":{"v":0,"d":"0.00"}},{"$f":"SUBTOTAL(109,Onkostenoverzicht[nov])","v":{"v":0,"d":"0.00"}},{"$f":"SUBTOTAL(109,Onkostenoverzicht[dec])","v":{"v":1049,"d":"1,049.00"}},{"$f":"SUBTOTAL(109,Onkostenoverzicht[Totaal])","v":{"v":6188,"d":"6,188.00"}}]

{"sheet":"jan","index":2,"n_rows":9,"n_cols":5,"rows_kept":9,"merged":[[0,0,0,2]]}
["ONKOSTEN JANUARI",null,null,"Overzicht","Tips"]
["Datum","Inkoopordernummer","Bedrag","Categorie","Beschrijving"]
[{"$f":"DATE(YEAR(TODAY()),1,4)","v":"2016-01-04"},"A-12345",{"v":33,"d":"33.00"},"Onkosten 1","Voorraad"]
[{"$f":"DATE(YEAR(TODAY()),1,5)","v":"2016-01-05"},"A-12346",{"v":238,"d":"238.00"},"Onkosten 2"]
[null,null,{"v":342,"d":"342.00"},"Onkosten 4"]
[null,null,{"v":110,"d":"110.00"},"Onkosten 3"]
[null,null,{"v":84,"d":"84.00"},"Onkosten 4"]
[null,null,{"v":54,"d":"54.00"},"Onkosten 5"]
["Totaal",null,{"$f":"SUBTOTAL(109,OnkJan[Bedrag])","v":{"v":861,"d":"861.00"}}]

{"sheet":"feb","index":3,"n_rows":9,"n_cols":5,"rows_kept":9,"merged":[[0,0,0,2]]}
["ONKOSTEN FEBRUARI",null,null,"Overzicht","Tips"]
["Datum","Inkoopordernummer","Bedrag","Categorie","Beschrijving"]
[{"$f":"DATE(YEAR(TODAY()),2,3)","v":"2016-02-03"},"A-12345",{"v":33,"d":"33.00"},"Onkosten 1","Voorraad"]
[{"$f":"DATE(YEAR(TODAY()),2,4)","v":"2016-02-04"},"A-12346",{"v":238,"d":"238.00"},"Onkosten 2"]
[null,null,{"v":342,"d":"342.00"},"Onkosten 1"]
[null,null,{"v":110,"d":"110.00"},"Onkosten 3"]
[null,null,{"v":84,"d":"84.00"},"Onkosten 4"]
[null,null,{"v":54,"d":"54.00"},"Onkosten 5"]
["Totaal",null,{"$f":"SUBTOTAL(109,OnkFeb[Bedrag])","v":{"v":861,"d":"861.00"}}]

{"sheet":"mrt","index":4,"n_rows":9,"n_cols":5,"rows_kept":9,"merged":[[0,0,0,2]]}
["ONKOSTEN MAART",null,null,"Overzicht","Tips"]
["Datum","Inkoopordernummer","Bedrag","Categorie","Beschrijving"]
[{"$f":"DATE(YEAR(TODAY()),3,5)","v":"2016-03-05"},"A-12345",{"v":33,"d":"33.00"},"Onkosten 1","Voorraad"]
[{"$f":"DATE(YEAR(TODAY()),3,6)","v":"2016-03-06"},"A-12346",{"v":238,"d":"238.00"},"Onkosten 2"]
[null,null,{"v":55,"d":"55.00"},"Onkosten 5"]
[null,null,{"v":110,"d":"110.00"},"Onkosten 3"]
[null,null,{"v":84,"d":"84.00"},"Onkosten 4"]
[null,null,{"v":54,"d":"54.00"},"Onkosten 5"]
["Totaal",null,{"$f":"SUBTOTAL(109,OnkMrt[Bedrag])","v":{"v":574,"d":"574.00"}}]

{"sheet":"apr","index":5,"n_rows":9,"n_cols":5,"rows_kept":9,"merged":[[0,0,0,2]]}
["ONKOSTEN APRIL",null,null,"Overzicht","Tips"]
["Datum","Inkoopordernummer","Bedrag","Categorie","Beschrijving"]
[{"$f":"DATE(YEAR(TODAY()),4,4)","v":"2016-04-04"},"A-12345",{"v":45,"d":"45.00"},"Onkosten 1","Voorraad"]
[{"$f":"DATE(YEAR(TODAY()),4,8)","v":"2016-04-08"},"A-12346",{"v":123,"d":"123.00"},"Onkosten 2"]
[null,null,{"v":342,"d":"342.00"},"Onkosten 4"]
[null,null,{"v":125,"d":"125.00"},"Onkosten 3"]
[null,null,{"v":84,"d":"84.00"},"Onkosten 4"]
[null,null,{"v":98,"d":"98.00"},"Onkosten 5"]
["Totaal",null,{"$f":"SUBTOTAL(109,OnkApr[Bedrag])","v":{"v":817,"d":"817.00"}}]

{"sheet":"mei","index":6,"n_rows":9,"n_cols":5,"rows_kept":9,"merged":[[0,0,0,2]]}
["ONKOSTEN MEI",null,null,"Overzicht","Tips"]
["Datum","Inkoopordernummer","Bedrag","Categorie","Beschrijving"]
[{"$f":"DATE(YEAR(TODAY()),5,3)","v":"2016-05-03"},"A-12345",{"v":33,"d":"33.00"},"Onkosten 1","Voorraad"]
[{"$f":"DATE(YEAR(TODAY()),5,8)","v":"2016-05-08"},"A-12346",{"v":111,"d":"111.00"},"Onkosten 2"]
[null,null,{"v":342,"d":"342.00"},"Onkosten 1"]
[null,null,{"v":333,"d":"333.00"},"Onkosten 3"]
[null,null,{"v":125,"d":"125.00"},"Onkosten 4"]
[null,null,{"v":33,"d":"33.00"},"Onkosten 5"]
["Totaal",null,{"$f":"SUBTOTAL(109,OnkMei[Bedrag])","v":{"v":977,"d":"977.00"}}]

{"sheet":"jun","index":7,"n_rows":9,"n_cols":5,"rows_kept":9,"merged":[[0,0,0,2]]}
["ONKOSTEN JUNI",null,null,"Overzicht","Tips"]
["Datum","Inkoopordernummer","Bedrag","Categorie","Beschrijving"]
[{"$f":"DATE(YEAR(TODAY()),6,7)","v":"2016-06-07"},"A-12345",{"v":201,"d":"201.00"},"Onkosten 1","Voorraad"]
[{"$f":"DATE(YEAR(TODAY()),6,8)","v":"2016-06-08"},"A-12346",{"v":98,"d":"98.00"},"Onkosten 2"]
[null,null,{"v":342,"d":"342.00"},"Onkosten 5"]
[null,null,{"v":122,"d":"122.00"},"Onkosten 3"]
[null,null,{"v":187,"d":"187.00"},"Onkosten 4"]
[null,null,{"v":99,"d":"99.00"},"Onkosten 5"]
["Totaal",null,{"$f":"SUBTOTAL(109,OnkJun[Bedrag])","v":{"v":1049,"d":"1,049.00"}}]

{"sheet":"jul","index":8,"n_rows":9,"n_cols":5,"rows_kept":9,"merged":[[0,0,0,2]]}
["ONKOSTEN JULI",null,null,"Overzicht","Tips"]
["Datum","Inkoopordernummer","Bedrag","Categorie","Beschrijving"]
[{"$f":"DATE(YEAR(TODAY()),7,9)","v":"2016-07-09"},"A-12345",null,"Onkosten 1","Voorraad"]
[{"$f":"DATE(YEAR(TODAY()),7,14)","v":"2016-07-14"},"A-12346",null,"Onkosten 2"]
[{"$nulls":3},"Onkosten 2"]
[{"$nulls":3},"Onkosten 3"]
[{"$nulls":3},"Onkosten 4"]
[{"$nulls":3},"Onkosten 5"]
["Totaal",null,{"$f":"SUBTOTAL(109,OnkJul[Bedrag])","v":{"v":0,"d":"0.00"}}]

{"sheet":"aug","index":9,"n_rows":9,"n_cols":5,"rows_kept":9,"merged":[[0,0,0,2]]}
["ONKOSTEN AUGUSTUS",null,null,"Overzicht","Tips"]
["Datum","Inkoopordernummer","Bedrag","Categorie","Beschrijving"]
[{"$f":"DATE(YEAR(TODAY()),8,8)","v":"2016-08-08"},"A-12345",null,"Onkosten 1","Voorraad"]
[{"$f":"DATE(YEAR(TODAY()),8,9)","v":"2016-08-09"},"A-12346",null,"Onkosten 2"]
[{"$nulls":3},"Onkosten 2"]
[{"$nulls":3},"Onkosten 3"]
[{"$nulls":3},"Onkosten 4"]
[{"$nulls":3},"Onkosten 5"]
["Totaal",null,{"$f":"SUBTOTAL(109,OnkAug[Bedrag])","v":{"v":0,"d":"0.00"}}]

{"sheet":"sep","index":10,"n_rows":9,"n_cols":5,"rows_kept":9,"merged":[[0,0,0,2]]}
["ONKOSTEN SEPTEMBER",null,null,"Overzicht","Tips"]
["Datum","Inkoopordernummer","Bedrag","Categorie","Beschrijving"]
[{"$f":"DATE(YEAR(TODAY()),9,9)","v":"2016-09-09"},"A-12345",null,"Onkosten 1","Voorraad"]
[{"$f":"DATE(YEAR(TODAY()),9,15)","v":"2016-09-15"},"A-12346",null,"Onkosten 2"]
[{"$nulls":3},"Onkosten 2"]
[{"$nulls":3},"Onkosten 3"]
[{"$nulls":3},"Onkosten 4"]
[{"$nulls":3},"Onkosten 5"]
["Totaal",null,{"$f":"SUBTOTAL(109,OnkSep[Bedrag])","v":{"v":0,"d":"0.00"}}]

{"sheet":"okt","index":11,"n_rows":9,"n_cols":5,"rows_kept":9,"merged":[[0,0,0,2]]}
["ONKOSTEN OKTOBER",null,null,"Overzicht","Tips"]
["Datum","Inkoopordernummer","Bedrag","Categorie","Beschrijving"]
[{"$f":"DATE(YEAR(TODAY()),10,10)","v":"2016-10-10"},"A-12345",null,"Onkosten 1","Voorraad"]
[{"$f":"DATE(YEAR(TODAY()),10,21)","v":"2016-10-21"},"A-12346",null,"Onkosten 2"]
[{"$nulls":3},"Onkosten 2"]
[{"$nulls":3},"Onkosten 3"]
[{"$nulls":3},"Onkosten 4"]
[{"$nulls":3},"Onkosten 5"]
["Totaal",null,{"$f":"SUBTOTAL(109,OnkOkt[Bedrag])","v":{"v":0,"d":"0.00"}}]

{"sheet":"nov","index":12,"n_rows":9,"n_cols":5,"rows_kept":9,"merged":[[0,0,0,2]]}
["ONKOSTEN NOVEMBER",null,null,"Overzicht","Tips"]
["Datum","Inkoopordernummer","Bedrag","Categorie","Beschrijving"]
[{"$f":"DATE(YEAR(TODAY()),11,14)","v":"2016-11-14"},"A-12345",null,"Onkosten 1","Voorraad"]
[{"$f":"DATE(YEAR(TODAY()),11,21)","v":"2016-11-21"},"A-12346",null,"Onkosten 2"]
[{"$nulls":3},"Onkosten 2"]
[{"$nulls":3},"Onkosten 3"]
[{"$nulls":3},"Onkosten 4"]
[{"$nulls":3},"Onkosten 5"]
["Totaal",null,{"$f":"SUBTOTAL(109,OnkNov[Bedrag])","v":{"v":0,"d":"0.00"}}]

{"sheet":"dec","index":13,"n_rows":9,"n_cols":5,"rows_kept":9,"merged":[[0,0,0,2]]}
["ONKOSTEN DECEMBER",null,null,"Overzicht","Tips"]
["Datum","Inkoopordernummer","Bedrag","Categorie","Beschrijving"]
[{"$f":"DATE(YEAR(TODAY()),12,2)","v":"2016-12-02"},"A-12345",{"v":201,"d":"201.00"},"Onkosten 1","Voorraad"]
[{"$f":"DATE(YEAR(TODAY()),12,24)","v":"2016-12-24"},"A-12346",{"v":98,"d":"98.00"},"Onkosten 2"]
[null,null,{"v":342,"d":"342.00"},"Onkosten 2"]
[null,null,{"v":122,"d":"122.00"},"Onkosten 3"]
[null,null,{"v":187,"d":"187.00"},"Onkosten 4"]
[null,null,{"v":99,"d":"99.00"},"Onkosten 5"]
["Totaal",null,{"$f":"SUBTOTAL(109,OnkDec[Bedrag])","v":{"v":1049,"d":"1,049.00"}}]